[Event "*** Titled Tuesday Blitz"]
[Site "Chess.com"]
[Date "2020.04.21"]
[Round "3"]
[White "grunbergmihai"]
[Black "mishanick"]
[Result "0-1"]
[WhiteElo "2371"]
[BlackElo "3054"]
[TimeControl "180+1"]
[EndTime "10:29:12 PDT"]
[Termination "mishanick won by resignation"]

1. Nf3 {[%clk 0:03:00.9]} 1... d5 {[%clk 0:02:57.6]} 2. c4 {[%clk 0:03:00.6]}
2... d4 {[%clk 0:02:57.6]} 3. e3 {[%clk 0:03:00.4]} 3... Nc6 {[%clk 0:02:56.8]}
4. d3 {[%clk 0:03:00.4]} 4... Nf6 {[%clk 0:02:53.8]} 5. exd4 {[%clk 0:02:58.3]}
5... Nxd4 {[%clk 0:02:54.7]} 6. Be3 {[%clk 0:02:56.8]} 6... Nxf3+ {[%clk
0:02:53.5]} 7. Qxf3 {[%clk 0:02:55.5]} 7... g6 {[%clk 0:02:53.5]} 8. Nc3 {[%clk
0:02:53]} 8... Bg7 {[%clk 0:02:53.9]} 9. d4 {[%clk 0:02:43.7]} 9... O-O {[%clk
0:02:52.5]} 10. h3 {[%clk 0:02:39.6]} 10... c6 {[%clk 0:02:47.8]} 11. Be2 {[%clk
0:02:36.6]} 11... Be6 {[%clk 0:02:45.9]} 12. O-O {[%clk 0:02:33.7]} 12... Qa5
{[%clk 0:02:46]} 13. Rfd1 {[%clk 0:02:28.5]} 13... Rad8 {[%clk 0:02:46.2]} 14.
a3 {[%clk 0:02:27.8]} 14... Rfe8 {[%clk 0:02:41.5]} 15. b4 {[%clk 0:02:26.6]}
15... Qc7 {[%clk 0:02:41.6]} 16. Rac1 {[%clk 0:02:23.3]} 16... Qd7 {[%clk
0:02:29.5]} 17. Rd2 {[%clk 0:02:03.8]} 17... a6 {[%clk 0:02:24.7]} 18. Rcd1
{[%clk 0:02:02.7]} 18... Qc8 {[%clk 0:02:19.5]} 19. d5 {[%clk 0:01:55.7]} 19...
cxd5 {[%clk 0:02:17.2]} 20. Nxd5 {[%clk 0:01:51.5]} 20... Nxd5 {[%clk 0:02:06]}
21. cxd5 {[%clk 0:01:51.2]} 21... Bf5 {[%clk 0:02:06.5]} 22. g4 {[%clk
0:01:37.8]} 22... Bd7 {[%clk 0:02:03.8]} 23. Bb6 {[%clk 0:01:37.2]} 23... Ba4
{[%clk 0:02:02.3]} 24. Bxd8 {[%clk 0:01:32.4]} 24... Bxd1 {[%clk 0:02:01.7]} 25.
Rxd1 {[%clk 0:01:29.3]} 25... Rxd8 {[%clk 0:01:58.9]} 26. Qe4 {[%clk 0:01:24.7]}
26... Bf6 {[%clk 0:01:55.7]} 27. Bc4 {[%clk 0:01:21.5]} 27... b5 {[%clk
0:01:52.4]} 28. Bb3 {[%clk 0:01:19.8]} 28... Qc7 {[%clk 0:01:50.2]} 29. Kg2
{[%clk 0:01:18.5]} 29... Rd6 {[%clk 0:01:47.9]} 30. Rd2 {[%clk 0:01:13.4]} 30...
Qc3 {[%clk 0:01:44.8]} 31. Qd3 {[%clk 0:01:11.3]} 31... Qc1 {[%clk 0:01:39.3]}
32. a4 {[%clk 0:00:59.9]} 32... Qa3 {[%clk 0:01:30.8]} 33. axb5 {[%clk
0:00:57.9]} 33... axb5 {[%clk 0:01:31.7]} 34. Ra2 {[%clk 0:00:48.3]} 34... Qxb4
{[%clk 0:01:29.9]} 35. Ra8+ {[%clk 0:00:47.6]} 35... Kg7 {[%clk 0:01:29.9]} 36.
Rb8 {[%clk 0:00:47.1]} 36... Qf4 {[%clk 0:01:29]} 37. Qf3 {[%clk 0:00:41.2]}
37... Qxf3+ {[%clk 0:01:16.4]} 38. Kxf3 {[%clk 0:00:40.7]} 38... Bd4 {[%clk
0:01:10]} 39. Ke2 {[%clk 0:00:33.8]} 39... Bb6 {[%clk 0:01:05.9]} 40. f4 {[%clk
0:00:30.5]} 40... b4 {[%clk 0:00:56.5]} 41. Rb7 {[%clk 0:00:29.7]} 41... Kf8
{[%clk 0:00:53.7]} 42. Rb8+ {[%clk 0:00:29.2]} 42... Kg7 {[%clk 0:00:54]} 43.
Rb7 {[%clk 0:00:29.1]} 43... Rf6 {[%clk 0:00:49.7]} 44. Rxe7 {[%clk 0:00:25.7]}
44... Bc5 {[%clk 0:00:47.8]} 45. Rc7 {[%clk 0:00:23.1]} 45... Bd6 {[%clk
0:00:47.9]} 46. Rc6 {[%clk 0:00:22.6]} 46... Bxf4 {[%clk 0:00:48.1]} 47. Rxf6
{[%clk 0:00:21]} 47... Kxf6 {[%clk 0:00:49]} 48. Kf3 {[%clk 0:00:20.7]} 48...
Bd6 {[%clk 0:00:48.7]} 49. h4 {[%clk 0:00:20.3]} 49... Ke5 {[%clk 0:00:48.8]}
50. Ke3 {[%clk 0:00:17.5]} 50... f5 {[%clk 0:00:46.8]} 51. gxf5 {[%clk
0:00:16.1]} 51... gxf5 {[%clk 0:00:47.7]} 52. Kf3 {[%clk 0:00:12.5]} 52... Kd4
{[%clk 0:00:46.9]} 53. Bc2 {[%clk 0:00:12.3]} 53... Ke5 {[%clk 0:00:46.2]} 54.
h5 {[%clk 0:00:11.3]} 54... h6 {[%clk 0:00:45.9]} 55. Ke3 {[%clk 0:00:10.8]}
55... f4+ {[%clk 0:00:45.5]} 56. Kf3 {[%clk 0:00:09.5]} 56... Kxd5 {[%clk
0:00:44.7]} 57. Bb3+ {[%clk 0:00:09.2]} 57... Kd4 {[%clk 0:00:45.2]} 58. Kg4
{[%clk 0:00:09.1]} 58... Kc3 {[%clk 0:00:44.1]} 59. Bd5 {[%clk 0:00:08.7]} 59...
b3 {[%clk 0:00:44.6]} 0-1

[Event "*** Titled Tuesday Blitz"]
[Site "Chess.com"]
[Date "2020.04.21"]
[Round "3"]
[White "MathiasWomacka"]
[Black "LittlePeasant"]
[Result "0-1"]
[WhiteElo "2453"]
[BlackElo "2784"]
[TimeControl "180+1"]
[EndTime "10:29:13 PDT"]
[Termination "LittlePeasant won on time"]

1. e4 {[%clk 0:03:00.9]} 1... c6 {[%clk 0:03:00]} 2. d4 {[%clk 0:02:59.5]} 2...
d5 {[%clk 0:03:00.9]} 3. Nd2 {[%clk 0:02:59.8]} 3... dxe4 {[%clk 0:03:01.3]} 4.
Nxe4 {[%clk 0:03:00.7]} 4... Nf6 {[%clk 0:03:02.2]} 5. Nxf6+ {[%clk 0:03:00.7]}
5... exf6 {[%clk 0:03:03.1]} 6. Bc4 {[%clk 0:03:00.4]} 6... Bd6 {[%clk
0:03:02.3]} 7. Qe2+ {[%clk 0:03:00.1]} 7... Qe7 {[%clk 0:03:02.3]} 8. Qxe7+
{[%clk 0:02:58]} 8... Kxe7 {[%clk 0:03:03.2]} 9. Ne2 {[%clk 0:02:58.2]} 9... b5
{[%clk 0:02:58.6]} 10. Bd3 {[%clk 0:02:54.6]} 10... Be6 {[%clk 0:02:57]} 11. Bf4
{[%clk 0:02:53.2]} 11... Nd7 {[%clk 0:02:55.1]} 12. O-O {[%clk 0:02:43.6]} 12...
Nb6 {[%clk 0:02:52.2]} 13. Rfe1 {[%clk 0:02:42]} 13... Rad8 {[%clk 0:02:49.1]}
14. Bxd6+ {[%clk 0:02:30.7]} 14... Kxd6 {[%clk 0:02:49]} 15. c3 {[%clk
0:02:25.8]} 15... Rhe8 {[%clk 0:02:46.7]} 16. b3 {[%clk 0:02:23]} 16... a5
{[%clk 0:02:35]} 17. Rac1 {[%clk 0:02:14.7]} 17... Kc7 {[%clk 0:02:27.4]} 18.
Nf4 {[%clk 0:01:49.8]} 18... h6 {[%clk 0:01:59]} 19. Nh5 {[%clk 0:01:43.6]}
19... Rg8 {[%clk 0:01:29.1]} 20. Bh7 {[%clk 0:01:36.4]} 20... Rh8 {[%clk
0:01:29.1]} 21. Be4 {[%clk 0:01:32.4]} 21... Rhg8 {[%clk 0:01:22.9]} 22. Bh7
{[%clk 0:01:30]} 22... Rh8 {[%clk 0:01:22.8]} 23. Bb1 {[%clk 0:01:24.3]} 23...
Rdg8 {[%clk 0:01:22.3]} 24. f3 {[%clk 0:01:16.6]} 24... a4 {[%clk 0:01:08.1]}
25. Nf4 {[%clk 0:01:10.6]} 25... Re8 {[%clk 0:01:06.5]} 26. Nh5 {[%clk
0:00:54.2]} 26... Reg8 {[%clk 0:00:30.5]} 27. Bc2 {[%clk 0:00:49.5]} 27... axb3
{[%clk 0:00:24.6]} 28. axb3 {[%clk 0:00:49.1]} 28... Nd7 {[%clk 0:00:24]} 29.
Ra1 {[%clk 0:00:41.1]} 29... g6 {[%clk 0:00:18.7]} 30. Nf4 {[%clk 0:00:39.1]}
30... Kd6 {[%clk 0:00:17.7]} 31. Bxg6 {[%clk 0:00:35.7]} 31... Bxb3 {[%clk
0:00:17.2]} 32. Bf5 {[%clk 0:00:35]} 32... Ra8 {[%clk 0:00:16.5]} 33. Kf2 {[%clk
0:00:25]} 33... Nb6 {[%clk 0:00:16.1]} 34. Nh5 {[%clk 0:00:19.4]} 34... Nd5
{[%clk 0:00:16.1]} 35. Be4 {[%clk 0:00:14.4]} 35... Nxc3 {[%clk 0:00:13.3]} 36.
Rxa8 {[%clk 0:00:12.1]} 36... Rxa8 {[%clk 0:00:12.7]} 37. Nxf6 {[%clk
0:00:12.4]} 37... Ra2+ {[%clk 0:00:13.1]} 38. Kg3 {[%clk 0:00:11.5]} 38... Ne2+
{[%clk 0:00:13.3]} 39. Kh4 {[%clk 0:00:11.1]} 39... Nxd4 {[%clk 0:00:13.6]} 40.
g4 {[%clk 0:00:07]} 40... b4 {[%clk 0:00:12.6]} 41. Bd3 {[%clk 0:00:04.9]} 41...
Nxf3+ {[%clk 0:00:10.1]} 42. Kg3 {[%clk 0:00:03.8]} 42... Nxe1 {[%clk
0:00:10.1]} 43. Ne4+ {[%clk 0:00:04.7]} 43... Kc7 {[%clk 0:00:09.8]} 0-1

[Event "*** Titled Tuesday Blitz"]
[Site "Chess.com"]
[Date "2020.04.21"]
[Round "3"]
[White "ALEXJR20"]
[Black "Milchone1"]
[Result "0-1"]
[WhiteElo "2242"]
[BlackElo "2477"]
[TimeControl "180+1"]
[EndTime "10:29:13 PDT"]
[Termination "Milchone1 won by checkmate"]

1. d4 {[%clk 0:03:00.9]} 1... Nf6 {[%clk 0:02:58.6]} 2. c4 {[%clk 0:03:01]} 2...
g6 {[%clk 0:02:58.6]} 3. Nf3 {[%clk 0:03:01.1]} 3... Bg7 {[%clk 0:02:59.1]} 4.
Nc3 {[%clk 0:03:00.6]} 4... O-O {[%clk 0:02:59.3]} 5. e4 {[%clk 0:03:00.8]} 5...
d6 {[%clk 0:02:59.2]} 6. Be2 {[%clk 0:03:01.1]} 6... c5 {[%clk 0:02:59.3]} 7.
O-O {[%clk 0:03:00.7]} 7... Bg4 {[%clk 0:02:59.6]} 8. Be3 {[%clk 0:02:56.9]}
8... Nfd7 {[%clk 0:02:57.3]} 9. h3 {[%clk 0:02:54.3]} 9... Bxf3 {[%clk
0:02:56.1]} 10. Bxf3 {[%clk 0:02:55.2]} 10... Nc6 {[%clk 0:02:55.9]} 11. d5
{[%clk 0:02:25.7]} 11... Nd4 {[%clk 0:02:54.4]} 12. Bxd4 {[%clk 0:02:11.6]}
12... cxd4 {[%clk 0:02:53.8]} 13. Ne2 {[%clk 0:02:03.3]} 13... Qb6 {[%clk
0:02:51.5]} 14. Rb1 {[%clk 0:02:02]} 14... Ne5 {[%clk 0:02:49]} 15. b3 {[%clk
0:01:53.9]} 15... a5 {[%clk 0:02:45.3]} 16. Nc1 {[%clk 0:01:52]} 16... a4 {[%clk
0:02:40.1]} 17. Nd3 {[%clk 0:01:51.9]} 17... axb3 {[%clk 0:02:37.6]} 18. axb3
{[%clk 0:01:50.4]} 18... Ra2 {[%clk 0:02:31.5]} 19. g4 {[%clk 0:01:41.8]} 19...
Rfa8 {[%clk 0:02:26.7]} 20. Bg2 {[%clk 0:01:40.5]} 20... R8a3 {[%clk 0:02:14.3]}
21. f4 {[%clk 0:01:36.9]} 21... Nxd3 {[%clk 0:02:12.4]} 22. Qxd3 {[%clk
0:01:37.8]} 22... Qb4 {[%clk 0:02:09.9]} 23. Rfd1 {[%clk 0:01:29.6]} 23... Qc3
{[%clk 0:02:02.4]} 24. Kh2 {[%clk 0:01:25.1]} 24... Qxd3 {[%clk 0:01:45.9]} 25.
Rxd3 {[%clk 0:01:26]} 25... Rc2 {[%clk 0:01:45.7]} 26. Kg3 {[%clk 0:01:20]}
26... h6 {[%clk 0:01:29.4]} 27. h4 {[%clk 0:01:18.2]} 27... b6 {[%clk 0:01:23]}
28. Bf3 {[%clk 0:01:15.3]} 28... Rc3 {[%clk 0:01:18.5]} 29. Rxc3 {[%clk
0:01:08.2]} 29... dxc3 {[%clk 0:01:19.4]} 30. Bd1 {[%clk 0:01:05.6]} 30... Ra2
{[%clk 0:01:19.3]} 31. Rc1 {[%clk 0:01:01.4]} 31... Bd4 {[%clk 0:01:18.6]} 32.
Bc2 {[%clk 0:00:51.1]} 32... Be3 {[%clk 0:01:16.9]} 33. Bb1 {[%clk 0:00:42.8]}
33... Rb2 {[%clk 0:01:08]} 34. Rxc3 {[%clk 0:00:30.9]} 34... Bd2 {[%clk
0:01:07.9]} 35. Rc2 {[%clk 0:00:24.6]} 35... Be1+ {[%clk 0:01:07.6]} 36. Kf3
{[%clk 0:00:23.1]} 36... Rxb1 {[%clk 0:01:08.5]} 37. e5 {[%clk 0:00:20.6]} 37...
Rxb3+ {[%clk 0:01:08]} 38. Ke4 {[%clk 0:00:18.5]} 38... Bxh4 {[%clk 0:01:04.8]}
39. c5 {[%clk 0:00:18.3]} 39... bxc5 {[%clk 0:01:03]} 40. Ra2 {[%clk 0:00:18.3]}
40... Rb4+ {[%clk 0:01:02.2]} 41. Ke3 {[%clk 0:00:18.5]} 41... dxe5 {[%clk
0:01:01.8]} 42. fxe5 {[%clk 0:00:18.1]} 42... Bg5+ {[%clk 0:01:02.3]} 43. Kd3
{[%clk 0:00:17.7]} 43... Rd4+ {[%clk 0:01:02.4]} 44. Kc3 {[%clk 0:00:17.4]}
44... Rxd5 {[%clk 0:01:03.3]} 45. Kc4 {[%clk 0:00:18.3]} 45... Rxe5 {[%clk
0:01:02.6]} 46. Ra8+ {[%clk 0:00:19.2]} 46... Kg7 {[%clk 0:01:01.3]} 47. Kd3
{[%clk 0:00:20.1]} 47... e6 {[%clk 0:00:59.3]} 48. Rc8 {[%clk 0:00:19.1]} 48...
Rd5+ {[%clk 0:00:59.5]} 49. Kc4 {[%clk 0:00:17.6]} 49... Rd4+ {[%clk 0:00:58.4]}
50. Kxc5 {[%clk 0:00:16.6]} 50... Rxg4 {[%clk 0:00:59.3]} 51. Kd6 {[%clk
0:00:16]} 51... h5 {[%clk 0:00:59.7]} 52. Ke5 {[%clk 0:00:15.6]} 52... h4 {[%clk
0:01:00.2]} 53. Rc3 {[%clk 0:00:14.9]} 53... Rg3 {[%clk 0:00:58.6]} 54. Rc2
{[%clk 0:00:15.1]} 54... h3 {[%clk 0:00:59]} 55. Rh2 {[%clk 0:00:15.1]} 55...
Kh6 {[%clk 0:00:57]} 56. Ke4 {[%clk 0:00:15.3]} 56... Kh5 {[%clk 0:00:56.9]} 57.
Kd4 {[%clk 0:00:14.9]} 57... Kh4 {[%clk 0:00:57.3]} 58. Ke4 {[%clk 0:00:15.3]}
58... Rg2 {[%clk 0:00:57.4]} 59. Rh1 {[%clk 0:00:15]} 59... h2 {[%clk
0:00:56.2]} 60. Kf3 {[%clk 0:00:15.3]} 60... Kh3 {[%clk 0:00:54.2]} 61. Rf1
{[%clk 0:00:14.6]} 61... Rg1 {[%clk 0:00:52.9]} 62. Rf2 {[%clk 0:00:14.8]} 62...
h1=Q+ {[%clk 0:00:49.2]} 63. Ke2 {[%clk 0:00:15.1]} 63... Qe4# {[%clk
0:00:46.1]} 0-1

[Event "*** Titled Tuesday Blitz"]
[Site "Chess.com"]
[Date "2020.04.21"]
[Round "3"]
[White "maxip32"]
[Black "artooon"]
[Result "0-1"]
[WhiteElo "2414"]
[BlackElo "2644"]
[TimeControl "180+1"]
[EndTime "10:29:15 PDT"]
[Termination "artooon won on time"]

1. e4 {[%clk 0:03:00.9]} 1... e5 {[%clk 0:03:00.1]} 2. Nf3 {[%clk 0:03:00.5]}
2... Nc6 {[%clk 0:03:00.7]} 3. Bc4 {[%clk 0:03:00.4]} 3... Nf6 {[%clk
0:03:01.3]} 4. d3 {[%clk 0:03:00.5]} 4... Bc5 {[%clk 0:03:01.3]} 5. O-O {[%clk
0:03:01]} 5... d6 {[%clk 0:03:01.5]} 6. c3 {[%clk 0:03:00.9]} 6... O-O {[%clk
0:03:02.2]} 7. a4 {[%clk 0:02:58.8]} 7... a6 {[%clk 0:03:02.6]} 8. Na3 {[%clk
0:02:56.1]} 8... h6 {[%clk 0:03:01.6]} 9. Nc2 {[%clk 0:02:53.2]} 9... Ba7 {[%clk
0:03:01.8]} 10. Be3 {[%clk 0:02:52.6]} 10... Ne7 {[%clk 0:03:01.3]} 11. Bxa7
{[%clk 0:02:52]} 11... Rxa7 {[%clk 0:03:02.2]} 12. Re1 {[%clk 0:02:51.8]} 12...
Ng6 {[%clk 0:03:03.1]} 13. a5 {[%clk 0:02:46.3]} 13... Nf4 {[%clk 0:02:57.5]}
14. d4 {[%clk 0:02:33.7]} 14... Qe7 {[%clk 0:02:56.3]} 15. d5 {[%clk 0:01:41]}
15... Bg4 {[%clk 0:02:50.3]} 16. Ne3 {[%clk 0:01:35.3]} 16... Bh5 {[%clk
0:02:50.3]} 17. Nf5 {[%clk 0:01:34.9]} 17... Qd7 {[%clk 0:02:50.2]} 18. Ng3
{[%clk 0:01:34.3]} 18... Bg6 {[%clk 0:02:36]} 19. Bf1 {[%clk 0:01:29.4]} 19...
N6h5 {[%clk 0:02:35.1]} 20. c4 {[%clk 0:01:26.3]} 20... f5 {[%clk 0:02:20.7]}
21. Nxf5 {[%clk 0:01:09.9]} 21... Bxf5 {[%clk 0:02:17.4]} 22. exf5 {[%clk
0:01:10.8]} 22... Qxf5 {[%clk 0:02:17.6]} 23. Ra3 {[%clk 0:00:46.3]} 23... Raa8
{[%clk 0:02:00.7]} 24. Kh1 {[%clk 0:00:41.7]} 24... Rae8 {[%clk 0:01:52]} 25.
Rae3 {[%clk 0:00:36.9]} 25... Nf6 {[%clk 0:01:48.4]} 26. h3 {[%clk 0:00:31.9]}
26... Qh5 {[%clk 0:01:43]} 27. Nd2 {[%clk 0:00:20.5]} 27... Qf5 {[%clk
0:01:32.7]} 28. Ne4 {[%clk 0:00:17.7]} 28... Nxe4 {[%clk 0:01:29.1]} 29. Rxe4
{[%clk 0:00:18.6]} 29... Rf7 {[%clk 0:01:29.1]} 30. Qg4 {[%clk 0:00:17.5]} 30...
Qf6 {[%clk 0:01:27.5]} 31. g3 {[%clk 0:00:13.8]} 31... Ng6 {[%clk 0:01:26.1]}
32. R1e2 {[%clk 0:00:13.4]} 32... Ref8 {[%clk 0:01:26.2]} 33. Bg2 {[%clk
0:00:13.3]} 33... Re7 {[%clk 0:01:22.6]} 34. R4e3 {[%clk 0:00:13]} 34... e4
{[%clk 0:01:12.5]} 35. Bxe4 {[%clk 0:00:12.4]} 35... Ne5 {[%clk 0:01:12.1]} 36.
Qh4 {[%clk 0:00:07.1]} 36... Qxh4 {[%clk 0:01:06.2]} 37. gxh4 {[%clk 0:00:08]}
37... Rf4 {[%clk 0:00:58.9]} 38. h5 {[%clk 0:00:06]} 38... Kf7 {[%clk
0:00:56.3]} 39. Kg2 {[%clk 0:00:05]} 39... Kf6 {[%clk 0:00:47.2]} 40. b3 {[%clk
0:00:04.4]} 40... Kg5 {[%clk 0:00:46.3]} 41. Bf3 {[%clk 0:00:03.4]} 41... Ref7
{[%clk 0:00:44.1]} 42. Bg4 {[%clk 0:00:02.6]} 42... Nxg4 {[%clk 0:00:39.2]} 43.
hxg4 {[%clk 0:00:03.5]} 43... Rxg4+ {[%clk 0:00:39.2]} 44. Kf1 {[%clk
0:00:03.8]} 44... Kxh5 {[%clk 0:00:32.6]} 45. Re7 {[%clk 0:00:03.9]} 45... Rgf4
{[%clk 0:00:32.2]} 46. Kg2 {[%clk 0:00:03.1]} 46... Kg5 {[%clk 0:00:29.5]} 47.
R2e6 {[%clk 0:00:02.4]} 47... h5 {[%clk 0:00:29.4]} 48. f3 {[%clk 0:00:01.4]}
48... Rxf3 {[%clk 0:00:28.8]} 0-1

[Event "*** Titled Tuesday Blitz"]
[Site "Chess.com"]
[Date "2020.04.21"]
[Round "3"]
[White "chess4life23"]
[Black "vpsetter"]
[Result "1-0"]
[WhiteElo "2430"]
[BlackElo "2599"]
[TimeControl "180+1"]
[EndTime "10:29:15 PDT"]
[Termination "chess4life23 won on time"]

1. d4 {[%clk 0:03:00.9]} 1... Nf6 {[%clk 0:02:59]} 2. c4 {[%clk 0:03:00.9]} 2...
e6 {[%clk 0:02:59.5]} 3. Nf3 {[%clk 0:03:00.5]} 3... d5 {[%clk 0:02:59.6]} 4.
Nc3 {[%clk 0:03:00.4]} 4... Be7 {[%clk 0:02:59.8]} 5. Bg5 {[%clk 0:03:00.1]}
5... h6 {[%clk 0:02:59.1]} 6. Bxf6 {[%clk 0:02:59.1]} 6... Bxf6 {[%clk
0:02:59.3]} 7. e3 {[%clk 0:02:57]} 7... O-O {[%clk 0:02:57.6]} 8. Qc2 {[%clk
0:02:53.4]} 8... dxc4 {[%clk 0:02:49.8]} 9. Bxc4 {[%clk 0:02:49.9]} 9... Nd7
{[%clk 0:02:49.8]} 10. O-O-O {[%clk 0:02:47.5]} 10... Nb6 {[%clk 0:02:47.6]} 11.
Bb3 {[%clk 0:02:42.2]} 11... Nd5 {[%clk 0:02:46.1]} 12. e4 {[%clk 0:02:35.4]}
12... Nxc3 {[%clk 0:02:43.7]} 13. Qxc3 {[%clk 0:02:32.7]} 13... b6 {[%clk
0:02:33.6]} 14. e5 {[%clk 0:02:22.1]} 14... Bg5+ {[%clk 0:02:33.2]} 15. Kb1
{[%clk 0:02:08.1]} 15... Bb7 {[%clk 0:02:32.5]} 16. h4 {[%clk 0:01:47.1]} 16...
Be4+ {[%clk 0:02:29.9]} 17. Ka1 {[%clk 0:01:44.4]} 17... Be7 {[%clk 0:02:24.9]}
18. Qe3 {[%clk 0:01:39.5]} 18... Bh7 {[%clk 0:02:14.7]} 19. d5 {[%clk
0:01:38.1]} 19... Bc5 {[%clk 0:02:10.2]} 20. Qf4 {[%clk 0:01:07.9]} 20... Qe7
{[%clk 0:02:02.7]} 21. Ng5 {[%clk 0:00:38.1]} 21... exd5 {[%clk 0:00:55.9]} 22.
Bxd5 {[%clk 0:00:28.2]} 22... Rad8 {[%clk 0:00:49.5]} 23. Bxf7+ {[%clk 0:00:14]}
23... Kh8 {[%clk 0:00:46.7]} 24. Rxd8 {[%clk 0:00:11]} 24... Qxd8 {[%clk
0:00:45.9]} 25. e6 {[%clk 0:00:10.7]} 25... Bc2 {[%clk 0:00:28.5]} 26. Nf3
{[%clk 0:00:09.6]} 26... Bd6 {[%clk 0:00:21.5]} 27. Qd2 {[%clk 0:00:08.6]} 27...
Bf5 {[%clk 0:00:21]} 28. Re1 {[%clk 0:00:05.8]} 28... Be7 {[%clk 0:00:15.7]} 29.
Qxd8 {[%clk 0:00:05]} 29... Rxd8 {[%clk 0:00:16.2]} 30. h5 {[%clk 0:00:05.5]}
30... Rd3 {[%clk 0:00:08.2]} 31. Ne5 {[%clk 0:00:05.4]} 31... Rd2 {[%clk
0:00:08.4]} 32. g4 {[%clk 0:00:05.5]} 32... Bh7 {[%clk 0:00:08.2]} 33. Bg6
{[%clk 0:00:05.2]} 33... Bg8 {[%clk 0:00:08.2]} 34. Nf7+ {[%clk 0:00:04.5]}
34... Bxf7 {[%clk 0:00:07.3]} 35. exf7 {[%clk 0:00:05.4]} 35... Bf8 {[%clk
0:00:07.6]} 36. a3 {[%clk 0:00:05.7]} 1-0

[Event "*** Titled Tuesday Blitz"]
[Site "Chess.com"]
[Date "2020.04.21"]
[Round "3"]
[White "JoachimMouhamad"]
[Black "KafkaesqueKnight"]
[Result "1-0"]
[WhiteElo "2359"]
[BlackElo "2133"]
[TimeControl "180+1"]
[EndTime "10:29:15 PDT"]
[Termination "JoachimMouhamad won on time"]

1. e4 {[%clk 0:03:00.9]} 1... c5 {[%clk 0:02:59.9]} 2. Nf3 {[%clk 0:02:56]} 2...
d6 {[%clk 0:02:58.9]} 3. d4 {[%clk 0:02:53.2]} 3... cxd4 {[%clk 0:02:59.8]} 4.
Nxd4 {[%clk 0:02:53.7]} 4... Nf6 {[%clk 0:02:59.8]} 5. Nc3 {[%clk 0:02:53.6]}
5... a6 {[%clk 0:02:59.9]} 6. f3 {[%clk 0:02:51.8]} 6... e5 {[%clk 0:02:59.4]}
7. Nb3 {[%clk 0:02:49.5]} 7... Be6 {[%clk 0:02:59.5]} 8. Be3 {[%clk 0:02:48.8]}
8... Be7 {[%clk 0:02:59.4]} 9. Qd2 {[%clk 0:02:47.5]} 9... Nbd7 {[%clk
0:02:58.1]} 10. O-O-O {[%clk 0:02:46.6]} 10... b5 {[%clk 0:02:58.1]} 11. g4
{[%clk 0:02:45]} 11... Nb6 {[%clk 0:02:55.2]} 12. Qf2 {[%clk 0:02:07.9]} 12...
Nc4 {[%clk 0:02:23.3]} 13. Bxc4 {[%clk 0:02:06.9]} 13... bxc4 {[%clk 0:02:24.2]}
14. Nc5 {[%clk 0:01:53.8]} 14... Qc7 {[%clk 0:02:14.7]} 15. Nxe6 {[%clk
0:01:49]} 15... fxe6 {[%clk 0:02:15.6]} 16. g5 {[%clk 0:01:27.3]} 16... Nd7
{[%clk 0:01:48]} 17. f4 {[%clk 0:01:26.7]} 17... O-O {[%clk 0:01:40.2]} 18. f5
{[%clk 0:01:26.5]} 18... Rab8 {[%clk 0:01:31.4]} 19. Rhg1 {[%clk 0:01:20.7]}
19... Qb7 {[%clk 0:01:28.1]} 20. b3 {[%clk 0:01:11.2]} 20... cxb3 {[%clk
0:01:26.4]} 21. axb3 {[%clk 0:01:10.1]} 21... d5 {[%clk 0:01:00.5]} 22. f6
{[%clk 0:01:08.4]} 22... Ba3+ {[%clk 0:00:58.3]} 23. Kb1 {[%clk 0:01:02.5]}
23... d4 {[%clk 0:00:58.5]} 24. Bxd4 {[%clk 0:00:45.3]} 24... exd4 {[%clk
0:00:56.7]} 25. Qxd4 {[%clk 0:00:46.2]} 25... Nc5 {[%clk 0:00:46.7]} 26. g6
{[%clk 0:00:34]} 26... h6 {[%clk 0:00:30.6]} 27. fxg7 {[%clk 0:00:29.2]} 27...
Rfd8 {[%clk 0:00:24.3]} 28. Qf6 {[%clk 0:00:24.5]} 28... Nxb3 {[%clk 0:00:19.2]}
29. Qf7+ {[%clk 0:00:17.2]} 29... Qxf7 {[%clk 0:00:17.9]} 30. gxf7+ {[%clk
0:00:18.1]} 30... Kxf7 {[%clk 0:00:18.8]} 31. cxb3 {[%clk 0:00:19]} 31... Rxd1+
{[%clk 0:00:13.8]} 32. Nxd1 {[%clk 0:00:15.8]} 32... Rg8 {[%clk 0:00:13.4]} 33.
Nc3 {[%clk 0:00:13.4]} 33... Rxg7 {[%clk 0:00:12.4]} 34. Rxg7+ {[%clk
0:00:13.4]} 34... Kxg7 {[%clk 0:00:13.3]} 35. Kc2 {[%clk 0:00:13.3]} 35... Bd6
{[%clk 0:00:12.6]} 36. h3 {[%clk 0:00:12.6]} 36... Kf6 {[%clk 0:00:12.6]} 37.
Kd3 {[%clk 0:00:12.4]} 37... Ke5 {[%clk 0:00:12.2]} 38. Ne2 {[%clk 0:00:12]}
38... Bc5 {[%clk 0:00:09.9]} 39. Kc4 {[%clk 0:00:11.4]} 39... Bf2 {[%clk
0:00:08.2]} 40. Kd3 {[%clk 0:00:12.3]} 40... Be1 {[%clk 0:00:07]} 41. Nd4 {[%clk
0:00:10.4]} 41... Bf2 {[%clk 0:00:04.9]} 42. Nf3+ {[%clk 0:00:10.2]} 42... Kf4
{[%clk 0:00:04.3]} 43. Nh2 {[%clk 0:00:08]} 1-0